[Event "December 5 Early 2023"]
[Site "https://www.chess.com"]
[Date "2023.12.05"]
[Round "10"]
[White "Kamsky, Gata"]
[Black "BestStelker"]
[Result "1/2-1/2"]
[Board "18"]
[TimeControl "180+1"]
[WhiteFideId "2000024"]
[WhiteElo "2936"]
[BlackElo "2820"]
[WhiteTeam "USA"]
[WhiteClock "0:00:20"]
[BlackClock "0:00:06"]

1. e4 {[%clk 0:03:00]}  c6 {[%clk 0:02:58]} 2. d4 {[%clk 0:02:55]}  d5 {[%clk 0:02:58]} 3. e5 {[%clk 0:02:55]}  Bf5 {[%clk 0:02:58]} 4. Nf3 {[%clk 0:02:54]}  e6 {[%clk 0:02:58]} 5. Be2 {[%clk 0:02:53]}  Nd7 {[%clk 0:02:58]} 6. O-O {[%clk 0:02:52]}  a5 {[%clk 0:02:59]} 7. a4 {[%clk 0:02:46]}  f6 {[%clk 0:02:57]} 8. Bf4 {[%clk 0:02:38]}  fxe5 {[%clk 0:02:11]} 9. dxe5 {[%clk 0:02:35]}  Bc5 {[%clk 0:02:08]} 10. Nbd2 {[%clk 0:02:33]}  Ne7 {[%clk 0:02:06]} 11. Nb3 {[%clk 0:02:32]}  Bb6 {[%clk 0:01:56]} 12. Nbd4 {[%clk 0:02:23]}  O-O {[%clk 0:01:55]} 13. Bg3 {[%clk 0:02:22]}  Nc5 {[%clk 0:01:49]} 14. Nh4 {[%clk 0:02:14]}  Qd7 {[%clk 0:01:37]} 15. Nhxf5 {[%clk 0:01:52]}  Nxf5 {[%clk 0:01:37]} 16. Nxf5 {[%clk 0:01:48]}  exf5 {[%clk 0:01:35]} 17. Bf4 {[%clk 0:01:21]}  Ne6 {[%clk 0:01:32]} 18. Qd2 {[%clk 0:01:19]}  Qe7 {[%clk 0:01:17]} 19. c3 {[%clk 0:01:15]}  Nxf4 {[%clk 0:01:08]} 20. Qxf4 {[%clk 0:01:14]}  Rae8 {[%clk 0:01:09]} 21. Rfe1 {[%clk 0:01:09]}  Qxe5 {[%clk 0:01:08]} 22. Qxe5 {[%clk 0:01:09]}  Rxe5 {[%clk 0:01:09]} 23. Bd3 {[%clk 0:01:08]}  Rfe8 {[%clk 0:01:05]} 24. Kf1 {[%clk 0:01:08]}  g6 {[%clk 0:01:00]} 25. Rxe5 {[%clk 0:01:08]}  Rxe5 {[%clk 0:01:00]} 26. Re1 {[%clk 0:01:08]}  Rxe1+ {[%clk 0:00:51]} 27. Kxe1 {[%clk 0:01:07]}  Kf7 {[%clk 0:00:52]} 28. Ke2 {[%clk 0:01:02]}  Ke6 {[%clk 0:00:51]} 29. h3 {[%clk 0:00:57]}  h5 {[%clk 0:00:47]} 30. g3 {[%clk 0:00:53]}  g5 {[%clk 0:00:37]} 31. f3 {[%clk 0:00:51]}  Ke5 {[%clk 0:00:31]} 32. g4 {[%clk 0:00:48]}  fxg4 {[%clk 0:00:27]} 33. fxg4 {[%clk 0:00:49]}  h4 {[%clk 0:00:22]} 34. Kf3 {[%clk 0:00:48]}  Bc5 {[%clk 0:00:20]} 35. Bf5 {[%clk 0:00:35]}  Kd6 {[%clk 0:00:08]} 36. Ke2 {[%clk 0:00:33]}  Bg1 {[%clk 0:00:07]} 37. Bc8 {[%clk 0:00:31]}  Kc7 {[%clk 0:00:06]} 38. Bf5 {[%clk 0:00:31]}  Bh2 {[%clk 0:00:06]} 39. Kd3 {[%clk 0:00:29]}  Bf4 {[%clk 0:00:06]} 40. b3 {[%clk 0:00:28]}  b6 {[%clk 0:00:04]} 41. c4 {[%clk 0:00:28]}  Kd6 {[%clk 0:00:03]} 42. cxd5 {[%clk 0:00:28]}  Kxd5 {[%clk 0:00:04]} 43. Be4+ {[%clk 0:00:28]}  Kc5 {[%clk 0:00:04]} 44. Bf3 {[%clk 0:00:27]}  Be5 {[%clk 0:00:03]} 45. Be4 {[%clk 0:00:28]}  b5 {[%clk 0:00:02]} 46. Bf3 {[%clk 0:00:27]}  Bf6 {[%clk 0:00:03]} 47. Be4 {[%clk 0:00:27]}  Kd6 {[%clk 0:00:02]} 48. Bf3 {[%clk 0:00:27]}  bxa4 {[%clk 0:00:02]} 49. bxa4 {[%clk 0:00:27]}  Kc5 {[%clk 0:00:03]} 50. Be4 {[%clk 0:00:26]}  Kd6 {[%clk 0:00:03]} 51. Bf3 {[%clk 0:00:27]}  c5 {[%clk 0:00:03]} 52. Be2 {[%clk 0:00:20]}  Ke5 {[%clk 0:00:02]} 53. Ke3 {[%clk 0:00:20]}  Be7 {[%clk 0:00:01]} 54. Bc4 {[%clk 0:00:19]}  Bd8 {[%clk 0:00:02]} 55. Bb3 {[%clk 0:00:19]}  Bc7 {[%clk 0:00:03]} 56. Ba2 {[%clk 0:00:19]}  Kf6 {[%clk 0:00:03]} 57. Ke4 {[%clk 0:00:19]}  Bf4 {[%clk 0:00:03]} 58. Kd5 {[%clk 0:00:18]}  Be3 {[%clk 0:00:03]} 59. Bc4 {[%clk 0:00:18]}  Bd4 {[%clk 0:00:03]} 60. Bb5 {[%clk 0:00:18]}  Ke7 {[%clk 0:00:04]} 61. Bc4 {[%clk 0:00:19]}  Kd7 {[%clk 0:00:04]} 62. Bb5+ {[%clk 0:00:19]}  Ke7 {[%clk 0:00:05]} 63. Bc4 {[%clk 0:00:20]}  Kd7 {[%clk 0:00:05]} 64. Bb5+ {[%clk 0:00:20]}  Ke7 {[%clk 0:00:06]} 1/2-1/2

[Event "December 5 Early 2023"]
[Site "https://www.chess.com"]
[Date "2023.12.05"]
[Round "10"]
[White "Vasquez Schroeder, Rodrigo"]
[Black "Yuan, Qingyu"]
[Result "0-1"]
[Board "19"]
[TimeControl "180+1"]
[WhiteFideId "3400042"]
[BlackFideId "8609772"]
[WhiteElo "2917"]
[BlackElo "2818"]
[WhiteTeam "CHI"]
[BlackTeam "CHN"]
[WhiteClock "0:00:04"]
[BlackClock "0:00:06"]

1. e4 {[%clk 0:03:00]}  e5 {[%clk 0:02:59]} 2. Nf3 {[%clk 0:03:00]}  Nc6 {[%clk 0:03:00]} 3. Bb5 {[%clk 0:03:00]}  Nf6 {[%clk 0:03:00]} 4. d3 {[%clk 0:03:00]}  Bc5 {[%clk 0:03:00]} 5. c3 {[%clk 0:03:01]}  d5 {[%clk 0:03:01]} 6. Qe2 {[%clk 0:03:00]}  dxe4 {[%clk 0:03:00]} 7. dxe4 {[%clk 0:03:00]}  O-O {[%clk 0:02:57]} 8. Bg5 {[%clk 0:03:00]}  a5 {[%clk 0:02:28]} 9. Nbd2 {[%clk 0:02:56]}  Qe7 {[%clk 0:02:22]} 10. O-O {[%clk 0:02:53]}  h6 {[%clk 0:02:09]} 11. Bh4 {[%clk 0:02:53]}  Bg4 {[%clk 0:02:03]} 12. h3 {[%clk 0:02:50]}  Bh5 {[%clk 0:02:03]} 13. g4 {[%clk 0:02:46]}  Bg6 {[%clk 0:02:03]} 14. Bxc6 {[%clk 0:02:38]}  bxc6 {[%clk 0:02:03]} 15. Nc4 {[%clk 0:02:39]}  Bd6 {[%clk 0:01:57]} 16. Nfd2 {[%clk 0:02:30]}  Qe6 {[%clk 0:01:54]} 17. f3 {[%clk 0:02:30]}  Bc5+ {[%clk 0:01:48]} 18. Kg2 {[%clk 0:02:28]}  a4 {[%clk 0:01:47]} 19. b4 {[%clk 0:02:24]}  axb3 {[%clk 0:01:44]} 20. axb3 {[%clk 0:02:23]}  Nd7 {[%clk 0:01:43]} 21. b4 {[%clk 0:02:20]}  Bb6 {[%clk 0:01:38]} 22. Bf2 {[%clk 0:02:16]}  f6 {[%clk 0:01:35]} 23. Nb3 {[%clk 0:02:07]}  Bf7 {[%clk 0:01:33]} 24. Nba5 {[%clk 0:02:05]}  Rfd8 {[%clk 0:01:23]} 25. Rfd1 {[%clk 0:02:04]}  Kh8 {[%clk 0:01:06]} 26. Ne3 {[%clk 0:01:56]}  Bxe3 {[%clk 0:00:58]} 27. Bxe3 {[%clk 0:01:55]}  Nb6 {[%clk 0:00:58]} 28. Rxd8+ {[%clk 0:01:39]}  Rxd8 {[%clk 0:00:58]} 29. Nb7 {[%clk 0:01:39]}  Rb8 {[%clk 0:00:51]} 30. Nc5 {[%clk 0:01:38]}  Qe7 {[%clk 0:00:51]} 31. Ra7 {[%clk 0:01:34]}  Nc4 {[%clk 0:00:39]} 32. Ra1 {[%clk 0:01:11]}  Rd8 {[%clk 0:00:37]} 33. Kg3 {[%clk 0:00:57]}  Qd6 {[%clk 0:00:34]} 34. Bf2 {[%clk 0:00:46]}  Qe7 {[%clk 0:00:32]} 35. Rd1 {[%clk 0:00:38]}  Rd6 {[%clk 0:00:27]} 36. Nb7 {[%clk 0:00:34]}  Rd7 {[%clk 0:00:27]} 37. Na5 {[%clk 0:00:33]}  Rxd1 {[%clk 0:00:05]} 38. Qxd1 {[%clk 0:00:31]}  Qe8 {[%clk 0:00:05]} 39. Qa4 {[%clk 0:00:26]}  Be6 {[%clk 0:00:03]} 40. Qxc6 {[%clk 0:00:21]}  Qxc6 {[%clk 0:00:03]} 41. Nxc6 {[%clk 0:00:21]}  Bd7 {[%clk 0:00:02]} 42. Ne7 {[%clk 0:00:17]}  c6 {[%clk 0:00:02]} 43. Bc5 {[%clk 0:00:14]}  Kh7 {[%clk 0:00:01]} 44. Kf2 {[%clk 0:00:15]}  Nb2 {[%clk 0:00:01]} 45. Ke2 {[%clk 0:00:14]}  g5 {[%clk 0:00:01]} 46. Kd2 {[%clk 0:00:12]}  Kg7 {[%clk 0:00:01]} 47. Kc2 {[%clk 0:00:12]}  Nc4 {[%clk 0:00:01]} 48. Kd3 {[%clk 0:00:11]}  Nb2+ {[%clk 0:00:01]} 49. Kc2 {[%clk 0:00:11]}  Nc4 {[%clk 0:00:02]} 50. Kb3 {[%clk 0:00:10]}  Nd2+ {[%clk 0:00:03]} 51. Kc2 {[%clk 0:00:11]}  Nxf3 {[%clk 0:00:03]} 52. Kd3 {[%clk 0:00:11]}  Kf7 {[%clk 0:00:02]} 53. Ke2 {[%clk 0:00:11]}  Nh4 {[%clk 0:00:02]} 54. c4 {[%clk 0:00:10]}  Ng6 {[%clk 0:00:02]} 55. Nxg6 {[%clk 0:00:09]}  Kxg6 {[%clk 0:00:03]} 56. Kd3 {[%clk 0:00:10]}  h5 {[%clk 0:00:03]} 57. gxh5+ {[%clk 0:00:09]}  Kxh5 {[%clk 0:00:04]} 58. Be7 {[%clk 0:00:09]}  Kg6 {[%clk 0:00:03]} 59. Ke3 {[%clk 0:00:08]}  Bxh3 {[%clk 0:00:03]} 60. b5 {[%clk 0:00:09]}  cxb5 {[%clk 0:00:04]} 61. cxb5 {[%clk 0:00:09]}  Bd7 {[%clk 0:00:05]} 62. b6 {[%clk 0:00:10]}  Bc6 {[%clk 0:00:05]} 63. Kf3 {[%clk 0:00:10]}  f5 {[%clk 0:00:06]} 64. Ke3 {[%clk 0:00:10]}  Bxe4 {[%clk 0:00:04]} 65. Bd8 {[%clk 0:00:10]}  Bb7 {[%clk 0:00:04]} 66. Bc7 {[%clk 0:00:10]}  f4+ {[%clk 0:00:04]} 67. Kf2 {[%clk 0:00:10]}  Kf5 {[%clk 0:00:05]} 68. Ke2 {[%clk 0:00:10]}  e4 {[%clk 0:00:06]} 69. Kd2 {[%clk 0:00:10]}  g4 {[%clk 0:00:06]} 70. Ke2 {[%clk 0:00:04]}  g3 {[%clk 0:00:06]} 0-1

[Event "December 5 Early 2023"]
[Site "https://www.chess.com"]
[Date "2023.12.05"]
[Round "10"]
[White "Vokhidov, Shamsiddin"]
[Black "Nguyen, Quoc Hy"]
[Result "1/2-1/2"]
[Board "20"]
[TimeControl "180+1"]
[WhiteFideId "14204223"]
[BlackFideId "12410853"]
[WhiteElo "2914"]
[BlackElo "2817"]
[WhiteTeam "UZB"]
[BlackTeam "VIE"]
[WhiteClock "0:00:14"]
[BlackClock "0:00:06"]

1. e4 {[%clk 0:03:00]}  c5 {[%clk 0:02:57]} 2. Nf3 {[%clk 0:03:01]}  d6 {[%clk 0:02:57]} 3. d4 {[%clk 0:03:02]}  cxd4 {[%clk 0:02:58]} 4. Nxd4 {[%clk 0:03:02]}  Nf6 {[%clk 0:02:58]} 5. Nc3 {[%clk 0:03:03]}  a6 {[%clk 0:02:58]} 6. a4 {[%clk 0:03:04]}  Nc6 {[%clk 0:02:52]} 7. Nxc6 {[%clk 0:03:03]}  bxc6 {[%clk 0:02:52]} 8. a5 {[%clk 0:03:04]}  e6 {[%clk 0:02:46]} 9. Bd3 {[%clk 0:03:04]}  Be7 {[%clk 0:02:46]} 10. O-O {[%clk 0:03:05]}  O-O {[%clk 0:02:46]} 11. Re1 {[%clk 0:03:05]}  Bb7 {[%clk 0:02:45]} 12. e5 {[%clk 0:03:05]}  dxe5 {[%clk 0:02:40]} 13. Rxe5 {[%clk 0:03:06]}  c5 {[%clk 0:02:39]} 14. Qe2 {[%clk 0:03:05]}  Qc7 {[%clk 0:02:34]} 15. h3 {[%clk 0:02:59]}  Qc6 {[%clk 0:02:12]} 16. Ne4 {[%clk 0:02:57]}  c4 {[%clk 0:02:10]} 17. Nxf6+ {[%clk 0:02:56]}  Bxf6 {[%clk 0:02:11]} 18. Be4 {[%clk 0:02:56]}  Qc7 {[%clk 0:02:10]} 19. Bxb7 {[%clk 0:02:45]}  Qxb7 {[%clk 0:01:45]} 20. Rc5 {[%clk 0:02:37]}  Bxb2 {[%clk 0:01:42]} 21. Rb1 {[%clk 0:02:29]}  Qe7 {[%clk 0:01:42]} 22. Qxc4 {[%clk 0:02:17]}  Bxc1 {[%clk 0:01:33]} 23. Rxc1 {[%clk 0:02:18]}  h6 {[%clk 0:01:29]} 24. Rb1 {[%clk 0:02:02]}  Rfd8 {[%clk 0:01:18]} 25. Rc6 {[%clk 0:02:01]}  Qf6 {[%clk 0:00:42]} 26. Rxa6 {[%clk 0:01:57]}  Rxa6 {[%clk 0:00:39]} 27. Qxa6 {[%clk 0:01:56]}  Rd2 {[%clk 0:00:40]} 28. Qa8+ {[%clk 0:01:52]}  Kh7 {[%clk 0:00:39]} 29. Qe4+ {[%clk 0:01:36]}  g6 {[%clk 0:00:37]} 30. Qf3 {[%clk 0:01:35]}  Qxf3 {[%clk 0:00:33]} 31. gxf3 {[%clk 0:01:36]}  Rxc2 {[%clk 0:00:33]} 32. Ra1 {[%clk 0:01:36]}  Rc7 {[%clk 0:00:32]} 33. a6 {[%clk 0:01:35]}  Ra7 {[%clk 0:00:33]} 34. f4 {[%clk 0:01:34]}  g5 {[%clk 0:00:27]} 35. Kg2 {[%clk 0:01:34]}  gxf4 {[%clk 0:00:24]} 36. Kf3 {[%clk 0:01:34]}  e5 {[%clk 0:00:25]} 37. Ke4 {[%clk 0:01:33]}  f6 {[%clk 0:00:25]} 38. Kd5 {[%clk 0:01:30]}  Kg6 {[%clk 0:00:24]} 39. Kc6 {[%clk 0:01:30]}  e4 {[%clk 0:00:18]} 40. Kb6 {[%clk 0:01:25]}  Ra8 {[%clk 0:00:19]} 41. Kb7 {[%clk 0:01:24]}  Re8 {[%clk 0:00:18]} 42. a7 {[%clk 0:01:23]}  Kg5 {[%clk 0:00:08]} 43. Rg1+ {[%clk 0:00:59]}  Kf5 {[%clk 0:00:08]} 44. Re1 {[%clk 0:00:48]}  Ke5 {[%clk 0:00:06]} 45. a8=Q {[%clk 0:00:43]}  Rxa8 {[%clk 0:00:05]} 46. Kxa8 {[%clk 0:00:44]}  Kd4 {[%clk 0:00:06]} 47. Rd1+ {[%clk 0:00:39]}  Kc3 {[%clk 0:00:04]} 48. Rd6 {[%clk 0:00:35]}  e3 {[%clk 0:00:04]} 49. fxe3 {[%clk 0:00:35]}  fxe3 {[%clk 0:00:04]} 50. Rxf6 {[%clk 0:00:13]}  e2 {[%clk 0:00:05]} 51. Re6 {[%clk 0:00:11]}  Kd2 {[%clk 0:00:05]} 52. Rd6+ {[%clk 0:00:12]}  Kc2 {[%clk 0:00:05]} 53. Re6 {[%clk 0:00:13]}  Kd2 {[%clk 0:00:05]} 54. Rd6+ {[%clk 0:00:13]}  Kc2 {[%clk 0:00:06]} 55. Re6 {[%clk 0:00:14]}  Kd2 {[%clk 0:00:06]} 1/2-1/2

[Event "December 5 Early 2023"]
[Site "https://www.chess.com"]
[Date "2023.12.05"]
[Round "10"]
[White "Thorfinnsson, Bjorn"]
[Black "Klukin, Kirill"]
[Result "0-1"]
[Board "22"]
[TimeControl "180+1"]
[WhiteFideId "2300982"]
[BlackFideId "24199273"]
[WhiteElo "2588"]
[BlackElo "2850"]
[WhiteTeam "ISL"]
[BlackTeam "RUS"]
[WhiteClock "0:00:17"]
[BlackClock "0:00:31"]

1. d4 {[%clk 0:02:58]}  Nf6 {[%clk 0:02:59]} 2. Nf3 {[%clk 0:02:58]}  e6 {[%clk 0:02:58]} 3. Bg5 {[%clk 0:02:58]}  d5 {[%clk 0:02:54]} 4. e3 {[%clk 0:02:55]}  Be7 {[%clk 0:02:54]} 5. Bd3 {[%clk 0:02:55]}  Nbd7 {[%clk 0:02:54]} 6. c3 {[%clk 0:02:55]}  h6 {[%clk 0:02:54]} 7. Bh4 {[%clk 0:02:54]}  Ne4 {[%clk 0:02:53]} 8. Bxe7 {[%clk 0:02:51]}  Qxe7 {[%clk 0:02:54]} 9. Nbd2 {[%clk 0:02:51]}  f5 {[%clk 0:02:54]} 10. O-O {[%clk 0:02:42]}  O-O {[%clk 0:02:54]} 11. c4 {[%clk 0:02:40]}  c6 {[%clk 0:02:54]} 12. Rc1 {[%clk 0:02:39]}  g5 {[%clk 0:02:31]} 13. Ne1 {[%clk 0:02:35]}  Ndf6 {[%clk 0:02:28]} 14. f3 {[%clk 0:02:34]}  Nxd2 {[%clk 0:02:28]} 15. Qxd2 {[%clk 0:02:35]}  e5 {[%clk 0:02:26]} 16. dxe5 {[%clk 0:02:32]}  Qxe5 {[%clk 0:02:24]} 17. cxd5 {[%clk 0:02:32]}  Nxd5 {[%clk 0:02:24]} 18. e4 {[%clk 0:02:25]}  Nf4 {[%clk 0:02:20]} 19. Bb1 {[%clk 0:01:34]}  Be6 {[%clk 0:02:15]} 20. g3 {[%clk 0:01:21]}  Nh3+ {[%clk 0:02:02]} 21. Kg2 {[%clk 0:01:21]}  Rad8 {[%clk 0:02:00]} 22. Qe2 {[%clk 0:01:14]}  Qa5 {[%clk 0:01:09]} 23. Nd3 {[%clk 0:00:57]}  fxe4 {[%clk 0:01:02]} 24. fxe4 {[%clk 0:00:49]}  Qb6 {[%clk 0:00:51]} 25. Rxf8+ {[%clk 0:00:43]}  Rxf8 {[%clk 0:00:51]} 26. Rf1 {[%clk 0:00:43]}  Rxf1 {[%clk 0:00:51]} 27. Qxf1 {[%clk 0:00:43]}  Qd4 {[%clk 0:00:48]} 28. b3 {[%clk 0:00:28]}  Qxe4+ {[%clk 0:00:46]} 29. Qf3 {[%clk 0:00:27]}  Qxf3+ {[%clk 0:00:29]} 30. Kxf3 {[%clk 0:00:27]}  Bf5 {[%clk 0:00:30]} 31. g4 {[%clk 0:00:20]}  Bxd3 {[%clk 0:00:29]} 32. Bxd3 {[%clk 0:00:20]}  Nf4 {[%clk 0:00:30]} 33. Bf5 {[%clk 0:00:20]}  Kf7 {[%clk 0:00:30]} 34. Bc8 {[%clk 0:00:19]}  b6 {[%clk 0:00:30]} 35. h4 {[%clk 0:00:19]}  Kf6 {[%clk 0:00:30]} 36. hxg5+ {[%clk 0:00:19]}  hxg5 {[%clk 0:00:31]} 37. Ke4 {[%clk 0:00:20]}  Nd5 {[%clk 0:00:30]} 38. Bb7 {[%clk 0:00:19]}  Nc3+ {[%clk 0:00:29]} 39. Kd3 {[%clk 0:00:19]}  Nxa2 {[%clk 0:00:29]} 40. Kc4 {[%clk 0:00:19]}  c5 {[%clk 0:00:28]} 41. Kb5 {[%clk 0:00:20]}  Nb4 {[%clk 0:00:29]} 42. Be4 {[%clk 0:00:18]}  Ke5 {[%clk 0:00:29]} 43. Bf5 {[%clk 0:00:19]}  Kd6 {[%clk 0:00:30]} 44. Kc4 {[%clk 0:00:19]}  a6 {[%clk 0:00:29]} 45. Be4 {[%clk 0:00:20]}  b5+ {[%clk 0:00:30]} 46. Kc3 {[%clk 0:00:20]}  Ke5 {[%clk 0:00:31]} 47. Bb7 {[%clk 0:00:20]}  Kf4 {[%clk 0:00:30]} 48. Bc8 {[%clk 0:00:20]}  Ke3 {[%clk 0:00:30]} 49. Bd7 {[%clk 0:00:20]}  Nd5+ {[%clk 0:00:30]} 50. Kc2 {[%clk 0:00:20]}  Kd4 {[%clk 0:00:30]} 51. Bc8 {[%clk 0:00:20]}  a5 {[%clk 0:00:30]} 52. Bd7 {[%clk 0:00:20]}  b4 {[%clk 0:00:28]} 53. Be6 {[%clk 0:00:19]}  Ne3+ {[%clk 0:00:28]} 54. Kd2 {[%clk 0:00:19]}  c4 {[%clk 0:00:29]} 55. bxc4 {[%clk 0:00:19]}  Nxc4+ {[%clk 0:00:30]} 56. Kc2 {[%clk 0:00:20]}  a4 {[%clk 0:00:29]} 57. Bd7 {[%clk 0:00:19]}  Nb6 {[%clk 0:00:29]} 58. Bf5 {[%clk 0:00:19]}  Kc5 {[%clk 0:00:29]} 59. Kb2 {[%clk 0:00:19]}  Nc4+ {[%clk 0:00:29]} 60. Kc2 {[%clk 0:00:20]}  b3+ {[%clk 0:00:29]} 61. Kc3 {[%clk 0:00:20]}  Nb6 {[%clk 0:00:30]} 62. Bc8 {[%clk 0:00:20]}  Nd5+ {[%clk 0:00:30]} 63. Kb2 {[%clk 0:00:19]}  Kb4 {[%clk 0:00:31]} 64. Be6 {[%clk 0:00:19]}  a3+ {[%clk 0:00:31]} 65. Ka1 {[%clk 0:00:19]}  b2+ {[%clk 0:00:30]} 66. Kb1 {[%clk 0:00:18]}  Nc3+ {[%clk 0:00:31]} 67. Kc2 {[%clk 0:00:17]}  b1=Q+ {[%clk 0:00:31]} 0-1

[Event "December 5 Early 2023"]
[Site "https://www.chess.com"]
[Date "2023.12.05"]
[Round "10"]
[White "Sokolovsky, Yahli"]
[Black "Maksimovic, Bojan"]
[Result "0-1"]
[Board "24"]
[TimeControl "180+1"]
[WhiteFideId "2820242"]
[BlackFideId "14408120"]
[WhiteElo "2756"]
[BlackElo "2925"]
[WhiteTeam "ISR"]
[BlackTeam "BIH"]
[WhiteClock "0:00:01"]
[BlackClock "0:01:29"]

1. b3 {[%clk 0:02:48]}  Nf6 {[%clk 0:02:58]} 2. Bb2 {[%clk 0:02:48]}  g6 {[%clk 0:02:59]} 3. c4 {[%clk 0:02:46]}  Bg7 {[%clk 0:02:59]} 4. g3 {[%clk 0:02:46]}  O-O {[%clk 0:02:56]} 5. Bg2 {[%clk 0:02:47]}  d6 {[%clk 0:02:56]} 6. Nf3 {[%clk 0:02:47]}  e5 {[%clk 0:02:57]} 7. d3 {[%clk 0:02:47]}  Re8 {[%clk 0:02:56]} 8. O-O {[%clk 0:02:47]}  a5 {[%clk 0:02:57]} 9. Nc3 {[%clk 0:02:48]}  Na6 {[%clk 0:02:57]} 10. Qd2 {[%clk 0:02:32]}  c6 {[%clk 0:02:56]} 11. e4 {[%clk 0:02:11]}  Nc5 {[%clk 0:02:51]} 12. h3 {[%clk 0:02:07]}  Qb6 {[%clk 0:02:52]} 13. Rab1 {[%clk 0:02:02]}  a4 {[%clk 0:02:51]} 14. Nxa4 {[%clk 0:01:37]}  Nxa4 {[%clk 0:02:51]} 15. bxa4 {[%clk 0:01:37]}  Qa5 {[%clk 0:02:50]} 16. Qxa5 {[%clk 0:01:22]}  Rxa5 {[%clk 0:02:51]} 17. Ba3 {[%clk 0:01:23]}  Bf8 {[%clk 0:02:44]} 18. Rb3 {[%clk 0:01:16]}  Rxa4 {[%clk 0:02:43]} 19. Rfb1 {[%clk 0:01:17]}  Nd7 {[%clk 0:02:23]} 20. Kf1 {[%clk 0:01:14]}  f6 {[%clk 0:02:22]} 21. h4 {[%clk 0:01:11]}  f5 {[%clk 0:02:09]} 22. Ng1 {[%clk 0:00:40]}  fxe4 {[%clk 0:02:06]} 23. Bxe4 {[%clk 0:00:40]}  d5 {[%clk 0:01:54]} 24. Bxf8 {[%clk 0:00:37]}  dxe4 {[%clk 0:01:54]} 25. Bb4 {[%clk 0:00:34]}  exd3 {[%clk 0:01:51]} 26. Rxd3 {[%clk 0:00:34]}  c5 {[%clk 0:01:51]} 27. Bd2 {[%clk 0:00:30]}  Rxc4 {[%clk 0:01:50]} 28. Ne2 {[%clk 0:00:28]}  b6 {[%clk 0:01:47]} 29. Nc3 {[%clk 0:00:23]}  Rd4 {[%clk 0:01:47]} 30. Rxd4 {[%clk 0:00:16]}  exd4 {[%clk 0:01:48]} 31. Nd5 {[%clk 0:00:14]}  Re6 {[%clk 0:01:48]} 32. Bf4 {[%clk 0:00:10]}  Ba6+ {[%clk 0:01:48]} 33. Kg1 {[%clk 0:00:11]}  Bc4 {[%clk 0:01:47]} 34. Nc7 {[%clk 0:00:08]}  Rc6 {[%clk 0:01:47]} 35. a4 {[%clk 0:00:07]}  Kf7 {[%clk 0:01:45]} 36. Rc1 {[%clk 0:00:07]}  Bb3 {[%clk 0:01:45]} 37. a5 {[%clk 0:00:03]}  bxa5 {[%clk 0:01:46]} 38. Nb5 {[%clk 0:00:03]}  Rb6 {[%clk 0:01:41]} 39. Nd6+ {[%clk 0:00:01]}  Ke6 {[%clk 0:01:42]} 40. Re1+ {[%clk 0:00:01]}  Kd5 {[%clk 0:01:41]} 41. Nc8 {[%clk 0:00:02]}  Re6 {[%clk 0:01:41]} 42. Ne7+ {[%clk 0:00:01]}  Rxe7 {[%clk 0:01:31]} 43. Rxe7 {[%clk 0:00:02]}  Kc6 {[%clk 0:01:32]} 44. Kf1 {[%clk 0:00:01]}  a4 {[%clk 0:01:32]} 45. Ke1 {[%clk 0:00:01]}  a3 {[%clk 0:01:32]} 46. Kd2 {[%clk 0:00:02]}  a2 {[%clk 0:01:32]} 47. Re1 {[%clk 0:00:03]}  c4 {[%clk 0:01:31]} 48. Ra1 {[%clk 0:00:01]}  c3+ {[%clk 0:01:31]} 49. Kd3 {[%clk 0:00:02]}  Kd5 {[%clk 0:01:31]} 50. Ke2 {[%clk 0:00:01]}  Nc5 {[%clk 0:01:31]} 51. Bc1 {[%clk 0:00:02]}  d3+ {[%clk 0:01:29]} 52. Ke3 {[%clk 0:00:02]}  Kc4 {[%clk 0:01:30]} 53. Ba3 {[%clk 0:00:02]}  d2 {[%clk 0:01:30]} 54. Bxc5 {[%clk 0:00:02]}  Kxc5 {[%clk 0:01:30]} 55. Ke2 {[%clk 0:00:01]}  d1=Q+ {[%clk 0:01:29]} 0-1

[Event "December 5 Early 2023"]
[Site "https://www.chess.com"]
[Date "2023.12.05"]
[Round "10"]
[White "Demchenko, Anton"]
[Black "Mamedov, Edgar"]
[Result "0-1"]
[Board "25"]
[TimeControl "180+1"]
[WhiteFideId "4160258"]
[BlackFideId "13739980"]
[WhiteElo "2897"]
[BlackElo "2747"]
[WhiteTeam "SLO"]
[BlackTeam "KAZ"]
[WhiteClock "0:00:00"]
[BlackClock "0:00:19"]

1. e4 {[%clk 0:02:55]}  c5 {[%clk 0:02:59]} 2. Nc3 {[%clk 0:02:53]}  e6 {[%clk 0:02:58]} 3. Nf3 {[%clk 0:02:51]}  Nc6 {[%clk 0:02:58]} 4. a3 {[%clk 0:02:47]}  Nf6 {[%clk 0:02:48]} 5. Bb5 {[%clk 0:02:47]}  Qc7 {[%clk 0:02:43]} 6. O-O {[%clk 0:02:44]}  a6 {[%clk 0:02:38]} 7. Bxc6 {[%clk 0:02:43]}  Qxc6 {[%clk 0:02:38]} 8. Re1 {[%clk 0:02:25]}  Be7 {[%clk 0:02:33]} 9. d4 {[%clk 0:02:23]}  cxd4 {[%clk 0:02:29]} 10. Nxd4 {[%clk 0:02:24]}  Qc4 {[%clk 0:02:22]} 11. e5 {[%clk 0:02:17]}  Nd5 {[%clk 0:01:54]} 12. Ne4 {[%clk 0:02:17]}  b5 {[%clk 0:01:48]} 13. Qg4 {[%clk 0:02:16]}  Kf8 {[%clk 0:01:45]} 14. c3 {[%clk 0:02:07]}  h5 {[%clk 0:01:42]} 15. Qf3 {[%clk 0:02:03]}  Bb7 {[%clk 0:01:39]} 16. Bg5 {[%clk 0:02:01]}  Qc7 {[%clk 0:01:21]} 17. Bxe7+ {[%clk 0:00:49]}  Nxe7 {[%clk 0:01:22]} 18. Qg3 {[%clk 0:00:49]}  h4 {[%clk 0:01:14]} 19. Qg5 {[%clk 0:00:49]}  h3 {[%clk 0:01:10]} 20. g3 {[%clk 0:00:41]}  Ng6 {[%clk 0:01:09]} 21. Nd6 {[%clk 0:00:38]}  Bd5 {[%clk 0:01:05]} 22. Re3 {[%clk 0:00:35]}  Kg8 {[%clk 0:01:03]} 23. f4 {[%clk 0:00:31]}  Rh6 {[%clk 0:00:57]} 24. Qg4 {[%clk 0:00:31]}  Rf8 {[%clk 0:00:54]} 25. Ne4 {[%clk 0:00:24]}  Kh8 {[%clk 0:00:50]} 26. Qe2 {[%clk 0:00:20]}  f6 {[%clk 0:00:48]} 27. exf6 {[%clk 0:00:20]}  gxf6 {[%clk 0:00:49]} 28. Re1 {[%clk 0:00:20]}  Rg8 {[%clk 0:00:45]} 29. Nxf6 {[%clk 0:00:19]}  Nxf4 {[%clk 0:00:44]} 30. Qd2 {[%clk 0:00:09]}  Rxf6 {[%clk 0:00:42]} 31. Re5 {[%clk 0:00:09]}  d6 {[%clk 0:00:35]} 32. R5e3 {[%clk 0:00:08]}  e5 {[%clk 0:00:33]} 33. Ne2 {[%clk 0:00:06]}  Ng2 {[%clk 0:00:26]} 34. Qxd5 {[%clk 0:00:04]}  Nxe3 {[%clk 0:00:23]} 35. Qe4 {[%clk 0:00:04]}  Ng4 {[%clk 0:00:20]} 36. Nd4 {[%clk 0:00:02]}  exd4 {[%clk 0:00:19]} 37. Qxd4 {[%clk 0:00:00]}  Qc5 {[%clk 0:00:19]} 0-1